bitfinex/quotes_BTCUSD_20241119
["timestamp","ask_amount","ask_price","bid_price","bid_amount"]
[1732051212927,0.4567016,92003.0,92002.0,0.097823]
[1732051213626,0.4567016,92003.0,91913.0,0.05543403]
[1732051213627,0.01,91974.0,91913.0,0.05543403]
[1732051213863,0.01,91946.0,91945.0,0.097884]
[1732051214068,0.4567016,91946.0,91945.0,0.097884]
[1732051215232,0.1,91968.0,91943.0,0.0987419]
[1732051215233,0.3696936,91961.0,91960.0,0.108742]
[1732051215490,0.47875615,91961.0,91960.0,0.108742]
[1732051216403,0.02,91957.0,91956.0,0.108746]
[1732051216614,0.0657,91951.0,91950.0,0.108754]
[1732051216872,0.16476255,91951.0,91950.0,0.108754]
[1732051217298,0.17476255,91951.0,91950.0,0.108754]
[1732051217535,0.25686255,91951.0,91950.0,0.108754]
[1732051217753,0.25686255,91951.0,91943.0,0.0008559]
[1732051217754,0.01,91944.0,91943.0,0.0008559]
[1732051217986,0.11906255,91944.0,91943.0,0.1096189]
[1732051218872,0.0457,91951.0,91943.0,0.1096189]
[1732051218873,0.01,91951.0,91950.0,0.108754]
[1732051219165,0.11906255,91951.0,91950.0,0.108754]
[1732051220265,0.01,91952.0,91951.0,0.108753]
[1732051220494,0.01,91952.0,91943.0,0.1096189]
[1732051220495,0.01,91961.0,91943.0,0.1238559]
[1732051220712,0.43952453,91970.0,91943.0,0.1238559]
[1732051220713,0.01,91962.0,91961.0,0.108741]
[1732051220936,0.10906255,91969.0,91943.0,0.1238559]
[1732051221149,0.01,91962.0,91961.0,0.108741]
[1732051222064,0.15168468,91988.0,91943.0,0.16734092]
[1732051222065,0.0944627,91986.0,91955.0,0.208748]
[1732051222317,0.01,91985.0,91984.0,0.108714]
[1732051222554,0.01,91990.0,91989.0,0.108708]
[1732051222764,0.01,91990.0,91951.0,0.108752]
[1732051222765,0.01,91955.0,91951.0,0.108752]
[1732051222987,0.5483,91954.0,91949.0,0.108755]
[1732051223207,0.5483,91954.0,91953.0,0.108751]
[1732051223895,0.65736255,91954.0,91953.0,0.108751]
[1732051226267,0.108751,91953.0,91943.0,0.0008559]
[1732051226495,0.16426255,91948.0,91947.0,0.108758]
[1732051226792,0.0652,91948.0,91947.0,0.108758]
[1732051227249,0.16426255,91948.0,91947.0,0.108758]
[1732051227472,0.18387295,91948.0,91947.0,0.108758]
[1732051227708,0.21774955,91948.0,91947.0,0.108758]
[1732051227934,0.21735995,91948.0,91947.0,0.108758]
[1732051228148,0.67697312,91948.0,91947.0,0.108758]
[1732051229509,0.69661882,91948.0,91947.0,0.108758]
[1732051229745,0.69661806,91948.0,91947.0,0.108758]
[1732051230209,0.69661806,91948.0,91943.0,0.0008559]
[1732051230210,0.5483,91944.0,91943.0,0.1096189]
[1732051230445,0.12870749,91944.0,91943.0,0.1096189]
[1732051231414,0.16015311,91944.0,91943.0,0.1096189]
[1732051231882,0.16015387,91944.0,91943.0,0.1096189]
[1732051232105,0.70845387,91944.0,91943.0,0.1096189]
[1732051232779,0.72208878,91944.0,91943.0,0.1096189]
[1732051233010,0.72108878,91944.0,91943.0,0.108763]
[1732051233236,0.70751256,91944.0,91943.0,0.108763]
[1732051233724,0.59945001,91944.0,91943.0,0.108763]
[1732051234954,0.56797308,91944.0,91943.0,0.108763]
[1732051236238,0.56802271,91944.0,91943.0,0.108763]
[1732051237136,0.5483,91944.0,91943.0,0.131763]
[1732051237393,0.4593,91944.0,91943.0,0.131763]
[1732051237595,0.0017104,91961.0,91943.0,0.131763]
[1732051237596,0.0017104,91961.0,91960.0,0.108742]
[1732051237823,0.01,91957.0,91919.0,0.1]
[1732051238034,0.61963395,91956.0,91955.0,0.108748]
[1732051240018,0.61963395,91956.0,91936.0,0.04402219]
[1732051240224,0.61963395,91956.0,91952.0,0.108751]
[1732051240225,0.5105714,91955.0,91952.0,0.108751]
[1732051240461,0.16033395,91954.0,91953.0,0.108751]
[1732051242969,0.16046802,91954.0,91953.0,0.108751]
[1732051243650,0.01,91951.0,91950.0,0.108753]
[1732051243883,0.16046802,91951.0,91950.0,0.108753]
[1732051244105,0.61976802,91951.0,91950.0,0.108753]
[1732051246567,0.51070547,91951.0,91950.0,0.108753]
[1732051247001,0.47907133,91951.0,91950.0,0.108753]
[1732051247203,0.01977133,91951.0,91950.0,0.108753]
[1732051247410,0.12883388,91951.0,91950.0,0.108753]
[1732051247617,0.1605398,91951.0,91950.0,0.108753]
[1732051247831,0.2040158,91951.0,91950.0,0.108753]
[1732051250625,0.2040158,91951.0,91950.0,0.103753]
[1732051250626,0.6633158,91951.0,91950.0,0.103753]
[1732051252437,0.5743158,91951.0,91950.0,0.103753]
[1732051253110,0.57438158,91951.0,91950.0,0.103753]
[1732051254159,0.66931402,91951.0,91950.0,0.103753]
[1732051254379,0.57438158,91951.0,91950.0,0.103753]
[1732051254576,0.54260988,91951.0,91950.0,0.103753]
[1732051254815,0.5743833,91951.0,91950.0,0.103753]
[1732051255237,0.66935002,91951.0,91950.0,0.103753]
[1732051255457,0.5743833,91951.0,91950.0,0.103753]
[1732051255886,0.66939989,91951.0,91950.0,0.103753]
[1732051256087,0.53454942,91951.0,91950.0,0.103753]
[1732051256413,0.502776,91951.0,91950.0,0.103753]
[1732051256617,0.61183855,91951.0,91950.0,0.103753]
[1732051257295,0.61183855,91951.0,91950.0,0.1046065]
[1732051259968,0.502776,91951.0,91950.0,0.1046065]
[1732051260389,0.01303603,91952.0,91951.0,0.108753]
[1732051260390,0.001707,91952.0,91951.0,0.108753]
[1732051260628,0.11076955,91952.0,91951.0,0.108753]
[1732051261056,0.15424855,91952.0,91951.0,0.108753]
[1732051263724,0.045186,91952.0,91951.0,0.108753]
[1732051263934,0.001707,91952.0,91951.0,0.108753]
[1732051264941,0.11076955,91952.0,91951.0,0.108753]
[1732051265115,0.001707,91952.0,91951.0,0.108753]
[1732051265356,0.001707,91952.0,91951.0,0.15208906]
[1732051266477,0.001707,91952.0,91951.0,0.22718906]
[1732051266689,0.001707,91952.0,91951.0,0.15208906]
[1732051266968,0.57006955,91952.0,91951.0,0.108753]
[1732051267428,0.48106955,91952.0,91951.0,0.108753]
[1732051267673,0.48106955,91952.0,91951.0,0.088753]
[1732051268621,0.510939,91952.0,91951.0,0.088753]
[1732051269059,0.510939,91952.0,91944.0,0.108761]
[1732051269060,0.01,91945.0,91944.0,0.108761]
[1732051269275,0.13892983,91945.0,91944.0,0.108761]
[1732051271336,0.10906255,91945.0,91944.0,0.108761]
[1732051271541,0.11906255,91945.0,91944.0,0.108761]
[1732051271752,0.12891862,91945.0,91944.0,0.108761]
[1732051271984,0.10906255,91945.0,91944.0,0.108761]
[1732051274759,0.4584465,91945.0,91944.0,0.108761]
[1732051276556,0.56750905,91945.0,91944.0,0.108761]
[1732051276774,0.4584465,91945.0,91944.0,0.108761]
[1732051277202,0.56750905,91945.0,91944.0,0.108761]
[1732051277625,0.4584465,91945.0,91944.0,0.108761]
[1732051278055,0.4584465,91951.0,91950.0,0.108754]
[1732051278506,0.001707,91952.0,91950.0,0.108754]
[1732051278507,0.001707,91952.0,91951.0,0.108753]
[1732051279927,0.043468,91962.0,91951.0,0.108753]
[1732051279928,0.0217206,91962.0,91953.0,0.1713]
[1732051280170,0.4584465,91987.0,91968.0,0.001]
[1732051280632,0.10906255,91986.0,91969.0,0.0771]
[1732051280641,0.10906255,91986.0,91942.0,0.0771]
[1732051280642,0.01,91966.0,91942.0,0.0771]
[1732051280867,0.01,91964.0,91963.0,0.108739]
[1732051281586,0.01,91962.0,91961.0,0.10874]
[1732051281843,0.01,91962.0,91944.0,0.0008535]
[1732051281844,0.01,91951.0,91950.0,0.108754]
[1732051282088,0.11906255,91951.0,91950.0,0.108754]
[1732051282569,0.03006255,91951.0,91950.0,0.108754]
[1732051282827,0.03006255,91951.0,91944.0,0.0008535]
[1732051283096,0.03006255,91951.0,91949.0,0.108755]
[1732051283336,0.03006255,91951.0,91950.0,0.108754]
[1732051283786,0.28006255,91951.0,91950.0,0.108754]
[1732051285865,0.01,91945.0,91944.0,0.1096145]
[1732051286070,0.11906255,91945.0,91944.0,0.1096145]
[1732051286771,0.36906255,91945.0,91944.0,0.1096145]
[1732051287225,0.36906255,91945.0,91944.0,0.0008535]
[1732051287457,1.18055754,91945.0,91944.0,0.0008535]
[1732051287675,1.50835363,91945.0,91944.0,0.0008535]
[1732051287905,1.6590395,91945.0,91944.0,0.0008535]
[1732051288205,1.6590395,91945.0,91944.0,0.00039972]
[1732051288206,1.70657895,91945.0,91944.0,0.00039972]
[1732051288462,1.70657895,91945.0,91932.0,0.000856]
[1732051288463,0.01,91933.0,91932.0,0.000856]
[1732051288693,0.11906255,91933.0,91932.0,0.109632]
[1732051288903,0.10906255,91933.0,91932.0,0.109632]
[1732051289345,0.11906255,91933.0,91932.0,0.109632]
[1732051289560,0.10906255,91933.0,91932.0,0.109632]
[1732051292051,0.25,91939.0,91938.0,0.108768]
[1732051292477,0.7983,91939.0,91938.0,0.108768]
[1732051292769,0.5483,91939.0,91938.0,0.108768]
[1732051292980,0.001707,91950.0,91949.0,0.108755]
[1732051293140,0.550007,91950.0,91949.0,0.108755]
[1732051293344,0.65876955,91950.0,91949.0,0.108755]
[1732051294816,0.65876955,91950.0,91947.0,0.108757]
[1732051295022,0.65876955,91950.0,91949.0,0.108755]
[1732051295023,0.549707,91950.0,91949.0,0.108755]
[1732051295238,0.56952728,91950.0,91949.0,0.108755]
[1732051295452,0.56952728,91950.0,91944.0,0.108761]
[1732051295782,0.01982028,91949.0,91944.0,0.10876]
[1732051295870,0.01982028,91949.0,91932.0,0.000856]
[1732051296102,0.108757,91948.0,91932.0,0.000856]
[1732051296305,0.108757,91948.0,91943.0,0.108762]
[1732051296522,0.108758,91947.0,91941.0,0.108765]
[1732051296733,0.25,91946.0,91943.0,0.108762]
[1732051297374,0.161,91946.0,91943.0,0.108762]
[1732051297791,0.01982028,91949.0,91943.0,0.108762]
[1732051298015,0.10876,91946.0,91940.0,0.108766]
[1732051298238,0.10876,91946.0,91940.0,0.217532]
[1732051298478,0.10876,91946.0,91936.0,0.108771]
[1732051298479,0.01,91933.0,91932.0,0.000856]
[1732051298714,0.5483,91938.0,91932.0,0.000856]
[1732051298715,0.02982028,91937.0,91932.0,0.000856]
[1732051298944,0.01,91933.0,91932.0,0.000856]
[1732051299853,0.26,91933.0,91932.0,0.000856]
[1732051300515,0.368774,91933.0,91932.0,0.000856]
[1732051300946,0.38860079,91933.0,91932.0,0.000856]
[1732051301844,0.42335545,91933.0,91932.0,0.000856]
[1732051302309,0.532418,91933.0,91932.0,0.000856]
[1732051303220,0.49766334,91933.0,91932.0,0.000856]
[1732051303753,0.532418,91933.0,91932.0,0.000856]
[1732051304845,0.438656,91919.0,91915.0,0.108795]
[1732051305070,0.631193,91933.0,91914.0,0.108797]
[1732051305071,0.65736255,91918.0,91914.0,0.108797]
[1732051305298,0.65736255,91918.0,91891.0,0.0004]
[1732051305299,0.01,91914.0,91913.0,0.1096539]
[1732051305533,0.11906255,91914.0,91913.0,0.1096539]
[1732051307128,0.77615955,91914.0,91913.0,0.0008559]
[1732051307336,0.8307254,91914.0,91913.0,0.0008559]
[1732051307750,0.93717374,91914.0,91913.0,0.0008559]
[1732051307986,1.0807254,91914.0,91913.0,0.0008559]
[1732051308200,0.9719284,91914.0,91913.0,0.0008559]
[1732051308445,0.26981119,91914.0,91913.0,0.1096539]
[1732051308660,0.90736255,91914.0,91913.0,0.1096539]
[1732051308880,0.90736255,91914.0,91913.0,0.0008559]
[1732051308881,0.65736255,91914.0,91913.0,0.0008559]
[1732051309110,0.66736255,91914.0,91913.0,0.0008559]
[1732051309375,0.68717803,91914.0,91913.0,0.0008559]
[1732051309823,0.93717803,91914.0,91913.0,0.0008559]
[1732051310242,0.96891216,91914.0,91913.0,0.0008559]
[1732051310452,0.01,91906.0,91880.0,0.108836]
[1732051310669,0.10906255,91902.0,91898.0,0.108815]
[1732051310872,0.01981548,91901.0,91897.0,0.108817]
[1732051311119,0.01,91902.0,91900.0,0.108813]
[1732051311346,0.01,91902.0,91901.0,0.108812]
[1732051311565,0.02984081,91902.0,91901.0,0.108812]
[1732051312451,0.48814081,91905.0,91904.0,0.108809]
[1732051312670,0.48814081,91905.0,91902.0,0.10881]
[1732051313093,0.48814081,91905.0,91896.0,0.0008559]
[1732051313546,0.59694881,91905.0,91897.0,0.108817]
[1732051313756,0.84694881,91905.0,91898.0,0.108816]
[1732051313965,0.16082991,91892.0,91886.0,0.108829]
[1732051314188,0.16082991,91892.0,91891.0,0.109224]
[1732051314671,0.16082991,91892.0,91891.0,0.0004]
[1732051315149,0.16082991,91892.0,91891.0,0.109224]
[1732051315798,0.41082991,91892.0,91891.0,0.109224]
[1732051316049,0.95912991,91892.0,91891.0,0.109224]
[1732051316715,0.70912991,91892.0,91891.0,0.1100778]
[1732051317379,0.81819246,91892.0,91891.0,0.1100778]
[1732051317843,1.06819246,91892.0,91891.0,0.108824]
[1732051318837,0.81819246,91892.0,91891.0,0.108824]
[1732051319036,0.70912991,91892.0,91891.0,0.1106475]
[1732051319186,0.70912991,91892.0,91891.0,0.108824]
[1732051319387,0.16082991,91892.0,91891.0,0.108824]
[1732051319586,0.16082991,91892.0,91891.0,0.11068062]
[1732051320230,0.16082991,91892.0,91891.0,0.13068062]
[1732051320400,0.00847491,91892.0,91891.0,0.13068062]
[1732051320610,0.25,91912.0,91911.0,0.1088]
[1732051320833,0.01132903,91914.0,91911.0,0.1088]
[1732051320834,0.01132903,91914.0,91913.0,0.128798]
[1732051321174,0.01132903,91914.0,91913.0,0.12058265]
[1732051321400,0.01132903,91914.0,91913.0,0.128798]
[1732051321596,0.25,91936.0,91920.0,0.10879]
[1732051321801,0.01132903,91939.0,91920.0,0.11879]
[1732051322006,6e-07,91921.0,91920.0,0.28159305]
[1732051322213,0.01132903,91939.0,91938.0,0.210668]
[1732051322214,3e-08,91939.0,91938.0,0.210668]
[1732051322429,0.25,91944.0,91943.0,0.128763]
[1732051322430,0.03044628,91944.0,91943.0,0.128763]
[1732051322660,0.03044628,91944.0,91943.0,0.28292555]
[1732051322878,0.5483,91977.0,91943.0,0.28292555]
[1732051322879,0.5483,91977.0,91949.0,0.128755]
[1732051323006,0.03171886,91986.0,91977.0,0.108722]
[1732051323228,0.03171886,91986.0,91964.0,0.108738]
[1732051323229,0.5498374,91994.0,91993.0,0.108703]
[1732051323466,0.65889995,91994.0,91993.0,0.108703]
[1732051323669,0.65889995,91994.0,91962.0,0.01]
[1732051323670,0.69114585,91994.0,91955.0,0.01]
[1732051324064,0.69114585,91994.0,91985.0,0.108713]
[1732051324065,0.10906255,91986.0,91985.0,0.108713]
[1732051324291,0.65736255,91986.0,91984.0,0.108714]
[1732051324537,0.65736255,91986.0,91985.0,0.108713]
[1732051324744,0.65736255,91986.0,91961.0,0.118741]
[1732051324745,0.108715,91984.0,91973.0,0.108726]
[1732051324967,0.10906255,91974.0,91934.0,0.0853]
[1732051325172,0.10906255,91964.0,91955.0,0.108748]
[1732051325408,0.10875,91954.0,91923.0,0.01]
[1732051325648,0.10875,91954.0,91922.0,0.01]
[1732051325649,0.10906255,91952.0,91941.0,0.108765]
[1732051325893,0.10906255,91952.0,91938.0,0.108767]
[1732051325894,0.12886817,91952.0,91938.0,0.108767]
[1732051326153,0.10906255,91939.0,91930.0,0.108778]
[1732051326436,0.56810562,91951.0,91928.0,0.10878]
[1732051326437,0.10906255,91935.0,91928.0,0.10878]
[1732051326666,0.10906255,91935.0,91905.0,0.01]
[1732051326667,0.65736255,91934.0,91905.0,0.108808]
[1732051326889,0.25,91924.0,91923.0,0.108786]
[1732051327118,0.35906255,91924.0,91923.0,0.108786]
[1732051327350,0.35906255,91924.0,91919.0,0.108791]
[1732051327351,0.35906255,91924.0,91920.0,0.108789]
[1732051327621,0.10906255,91923.0,91917.0,0.108793]
[1732051327863,0.10906255,91923.0,91920.0,0.108789]
[1732051328101,0.108799,91913.0,91890.0,0.108825]
[1732051328329,0.21758,91920.0,91905.0,0.108807]
[1732051328330,0.65736255,91912.0,91905.0,0.108807]
[1732051328553,0.65736255,91912.0,91911.0,0.1088]
[1732051328763,0.65736255,91912.0,91888.0,0.01]
[1732051328764,0.25,91909.0,91907.0,0.108805]
[1732051328981,0.10906255,91908.0,91907.0,0.108805]
[1732051329190,0.65736255,91908.0,91906.0,0.0008535]
[1732051329609,0.5483,91907.0,91906.0,0.1096585]
[1732051329822,0.90736255,91907.0,91906.0,0.1096585]
[1732051330726,0.10906255,91907.0,91906.0,0.1096585]
[1732051331465,0.10906255,91907.0,91906.0,0.11144369]
[1732051331670,0.25,91908.0,91907.0,0.108805]
[1732051331915,0.5483,91915.0,91914.0,0.108797]
[1732051332137,0.65736255,91915.0,91914.0,0.108797]
[1732051332812,0.25,91913.0,91906.0,0.0008535]
[1732051333012,0.25,91913.0,91912.0,0.108799]
[1732051333224,0.25,91913.0,91912.0,0.00177788]
[1732051333433,0.25,91913.0,91912.0,0.11057688]
[1732051333722,0.25,91913.0,91912.0,0.108799]
[1732051333904,0.5483,91915.0,91914.0,0.108797]
[1732051334152,0.65736255,91915.0,91914.0,0.108797]
[1732051334358,0.65736255,91915.0,91914.0,0.11057766]
[1732051334781,0.5483,91915.0,91914.0,0.11057766]
[1732051334997,0.5483,91925.0,91924.0,0.108785]
[1732051335206,0.65736255,91925.0,91924.0,0.108785]
[1732051335420,0.65736255,91925.0,91924.0,0.11061344]
[1732051336698,0.76614655,91925.0,91924.0,0.00182844]
[1732051336942,0.65736255,91925.0,91924.0,0.00182844]
[1732051337182,0.65736255,91925.0,91906.0,0.0008535]
[1732051337387,0.10906255,91915.0,91908.0,0.108803]
[1732051337638,0.10906255,91915.0,91910.0,0.108801]
[1732051338058,0.10906255,91915.0,91911.0,0.00178368]
[1732051338264,0.10906255,91915.0,91911.0,0.11058368]
[1732051338479,0.10906255,91915.0,91914.0,0.108797]
[1732051339114,0.25,91920.0,91913.0,0.108797]
[1732051339115,0.25,91920.0,91919.0,0.108791]
[1732051339801,0.5483,91932.0,91916.0,0.01]
[1732051340023,0.5483,91935.0,91931.0,0.108777]
[1732051340267,0.5483,91935.0,91852.0,0.24337895]
[1732051340268,0.217552,91932.0,91870.0,0.108848]
[1732051340492,0.1312,91934.0,91860.0,0.01]
[1732051340493,0.0313,91906.0,91883.0,0.108833]
[1732051340715,0.1,91888.0,91881.0,0.108836]
[1732051340942,0.1,91888.0,91860.0,0.01]
[1732051340943,0.1,91884.0,91876.0,0.108842]
[1732051341175,0.1,91884.0,91858.0,0.000854]
[1732051341176,0.1,91882.0,91881.0,0.108836]
[1732051341411,0.20906255,91882.0,91881.0,0.108836]
[1732051341608,0.10906255,91882.0,91881.0,0.108836]
[1732051341862,0.5483,91882.0,91881.0,0.108836]
[1732051342067,0.65736255,91882.0,91881.0,0.108836]
[1732051342493,0.56736255,91882.0,91881.0,0.108836]
[1732051343591,0.66736255,91882.0,91881.0,0.108836]
[1732051344493,0.5583,91882.0,91881.0,0.185036]
[1732051344718,0.5583,91882.0,91881.0,0.195036]
[1732051345160,0.4583,91882.0,91881.0,0.205036]
[1732051345401,0.25,91913.0,91881.0,0.205036]
[1732051345402,0.4583,91912.0,91888.0,0.01]
[1732051345629,0.56736255,91911.0,91910.0,0.108802]
[1732051345839,0.10906255,91911.0,91910.0,0.108802]
[1732051346894,0.4583,91912.0,91911.0,0.1088]
[1732051347346,0.0017076,91924.0,91922.0,0.108787]
[1732051347347,0.4583,91923.0,91922.0,0.108787]
[1732051347566,0.0017076,91924.0,91923.0,0.108786]
[1732051348822,0.0017076,91924.0,91917.0,0.0761]
[1732051348823,0.1,91923.0,91917.0,0.0761]
[1732051349113,0.1,91921.0,91901.0,0.01]
[1732051349262,0.1,91914.0,91896.0,0.0893]
[1732051349490,0.10906255,91920.0,91876.0,0.0453]
[1732051349491,0.1,91909.0,91886.0,0.01]
[1732051349700,0.1,91904.0,91895.0,0.108819]
[1732051349927,0.1,91902.0,91897.0,0.108817]
[1732051350150,0.1,91900.0,91897.0,0.108817]
[1732051350365,0.1,91900.0,91899.0,0.108814]
[1732051350577,0.1,91900.0,91883.0,0.108833]
[1732051350785,0.1,91898.0,91890.0,0.108824]
[1732051351016,0.1,91898.0,91897.0,0.108817]
[1732051351891,0.1,91907.0,91906.0,0.108806]
[1732051352096,0.5583,91907.0,91906.0,0.108806]
[1732051352307,0.66736255,91907.0,91906.0,0.108806]
[1732051352739,0.5583,91907.0,91906.0,0.108806]
[1732051353019,0.66736255,91907.0,91903.0,0.0008538]
[1732051353220,0.31787155,91904.0,91903.0,0.0008538]
[1732051353634,0.35624692,91904.0,91903.0,0.0008538]
[1732051353889,0.81454692,91904.0,91903.0,0.0008538]
[1732051354318,0.70573792,91904.0,91883.0,0.108833]
[1732051354523,0.217613,91906.0,91887.0,0.108828]
[1732051354524,0.208821,91894.0,91887.0,0.108828]
[1732051354772,0.10906255,91898.0,91884.0,0.108832]
[1732051354773,0.35,91891.0,91884.0,0.108832]
[1732051355011,0.10906255,91890.0,91887.0,0.108828]
[1732051355215,0.1,91889.0,91885.0,0.108831]
[1732051355427,0.10906255,91888.0,91887.0,0.108829]
[1732051355640,0.20906255,91888.0,91887.0,0.108829]
[1732051357579,0.01906255,91888.0,91887.0,0.108829]
[1732051359614,0.06257555,91888.0,91887.0,0.108829]
[1732051361421,0.043513,91888.0,91887.0,0.108829]
[1732051361627,0.043513,91888.0,91887.0,0.118829]
[1732051362050,0.1,91907.0,91906.0,0.108806]
[1732051362266,0.25,91908.0,91907.0,0.108805]
[1732051362468,0.293501,91908.0,91907.0,0.108805]
[1732051362875,0.4583,91915.0,91907.0,0.108805]
[1732051363083,0.4583,91915.0,91914.0,0.108797]
[1732051363508,0.501799,91915.0,91914.0,0.108797]
[1732051363721,0.601799,91915.0,91914.0,0.108797]
[1732051363946,0.71086155,91915.0,91914.0,0.108797]
[1732051364200,0.1,91914.0,91908.0,0.108804]
[1732051364448,0.1,91912.0,91887.0,0.01]
[1732051364600,0.1,91906.0,91896.0,0.108818]
[1732051364803,0.1,91904.0,91903.0,0.10881]
[1732051365233,0.24743792,91904.0,91903.0,0.10881]
[1732051365635,0.20906255,91904.0,91903.0,0.10881]
[1732051366253,0.20906255,91904.0,91893.0,0.01]
[1732051366461,0.1,91899.0,91882.0,0.0008542]
[1732051366680,0.1,91897.0,91888.0,0.108827]
[1732051366888,0.1,91893.0,91889.0,0.108826]
[1732051367106,0.1,91891.0,91889.0,0.108826]
[1732051367348,0.1,91889.0,91888.0,0.108827]
[1732051367550,0.20906255,91889.0,91888.0,0.108827]
[1732051368705,0.66736255,91889.0,91888.0,0.108827]
[1732051370603,0.66736255,91889.0,91888.0,0.10752894]
[1732051370811,0.66736255,91889.0,91888.0,0.10490522]
[1732051371229,0.1,91893.0,91892.0,0.108823]
[1732051371435,0.1,91893.0,91892.0,0.118823]
[1732051371667,0.25,91895.0,91894.0,0.108821]
[1732051371668,0.35,91895.0,91894.0,0.108821]
[1732051371890,0.1,91895.0,91894.0,0.108821]
[1732051372459,0.108815,91899.0,91893.0,0.108822]
[1732051372659,0.25,91900.0,91892.0,0.108822]
[1732051372660,0.1,91898.0,91892.0,0.108822]
[1732051372875,0.1,91898.0,91897.0,0.108817]
[1732051373530,0.25,91900.0,91897.0,0.108817]
[1732051373740,0.10881,91903.0,91898.0,0.108815]
[1732051374171,0.217623,91902.0,91893.0,0.108822]
[1732051374384,0.03837537,91903.0,91886.0,0.01]
[1732051374596,0.13837537,91903.0,91900.0,0.108813]
[1732051374825,0.13837537,91903.0,91894.0,0.10882]
[1732051374826,0.03837537,91903.0,91894.0,0.10882]
[1732051375050,0.1,91905.0,91891.0,0.108824]
[1732051375256,0.1,91905.0,91904.0,0.108809]
[1732051375486,0.5583,91905.0,91904.0,0.108809]
[1732051375676,0.1,91905.0,91904.0,0.108809]
[1732051376105,0.1,91907.0,91903.0,0.108809]
[1732051376305,0.1,91907.0,91906.0,0.108806]
[1732051376746,0.35,91907.0,91906.0,0.108806]
[1732051376953,0.45906255,91907.0,91906.0,0.108806]
[1732051377404,0.43006255,91907.0,91906.0,0.108806]
[1732051377827,0.18006255,91907.0,91906.0,0.108806]
[1732051378547,0.18006255,91907.0,91905.0,0.108807]
[1732051378748,0.10906255,91906.0,91905.0,0.108807]
[1732051379183,0.58723078,91906.0,91905.0,0.108807]
[1732051379418,0.68723078,91906.0,91905.0,0.108807]
[1732051380540,0.68724818,91906.0,91905.0,0.108807]
[1732051381020,0.25,91909.0,91908.0,0.128804]
[1732051381674,0.25,91909.0,91908.0,0.173904]
[1732051381920,0.0017084,91921.0,91908.0,0.173904]
[1732051381921,0.0017084,91921.0,91920.0,0.12879]
[1732051382164,0.0017084,91921.0,91920.0,0.20729]
[1732051382874,0.0017076,91924.0,91920.0,0.20729]
[1732051382875,0.2,91943.0,91942.0,0.01]
[1732051383094,0.2,91943.0,91942.0,0.128764]
[1732051383332,0.2,91946.0,91945.0,0.12876]
[1732051383794,0.2,91946.0,91945.0,0.20496]
[1732051384037,0.2,91946.0,91940.0,0.01]
[1732051384038,0.30906255,91946.0,91940.0,0.01]
[1732051384245,0.10906255,91941.0,91920.0,0.01]
[1732051384474,0.4583,91940.0,91933.0,0.108773]
[1732051384683,0.4583,91940.0,91936.0,0.108771]
[1732051384684,0.10906255,91939.0,91936.0,0.108771]
[1732051384888,0.10906255,91939.0,91930.0,0.118777]
[1732051384889,0.10906255,91939.0,91933.0,0.108773]
[1732051385118,0.1,91938.0,91930.0,0.01]
[1732051385371,0.10906255,91939.0,91930.0,0.01]
[1732051385372,0.20906255,91937.0,91936.0,0.10877]
[1732051387178,0.1,91936.0,91920.0,0.01]
[1732051387400,0.1,91936.0,91901.0,0.108812]
[1732051387401,0.1,91921.0,91901.0,0.108812]
[1732051387679,0.56736255,91920.0,91900.0,0.01]
[1732051387899,0.217585,91918.0,91895.0,0.01]
[1732051388106,0.10906255,91917.0,91896.0,0.108818]
[1732051388336,0.4583,91916.0,91896.0,0.108818]
[1732051388557,0.10906255,91912.0,91888.0,0.0008541]
[1732051388810,0.10906255,91907.0,91888.0,0.0008541]
[1732051389020,0.25,91897.0,91888.0,0.1196811]
[1732051389230,0.108826,91889.0,91888.0,0.0008541]
[1732051389436,0.21788855,91889.0,91888.0,0.0008541]
[1732051390071,0.4583,91896.0,91888.0,0.0008541]
[1732051390286,0.4583,91896.0,91895.0,0.01]
[1732051390521,0.4583,91896.0,91895.0,0.118819]
[1732051392299,0.56736255,91896.0,91888.0,0.0008541]
[1732051392522,0.108826,91889.0,91888.0,0.0008541]
[1732051392727,0.21788855,91889.0,91888.0,0.0008541]
[1732051393148,0.10906255,91889.0,91888.0,0.0008541]
[1732051393995,0.10906255,91889.0,91888.0,0.1096821]
[1732051394207,0.10906255,91889.0,91888.0,0.0008541]
[1732051394418,0.21788855,91889.0,91888.0,0.0008541]
[1732051395152,0.67618855,91889.0,91888.0,0.0008541]
[1732051395607,0.67618855,91889.0,91882.0,0.0008542]
[1732051395608,0.108834,91883.0,91882.0,0.0008542]
[1732051395827,0.21789655,91883.0,91882.0,0.0008542]
[1732051397780,0.35906255,91883.0,91882.0,0.0008542]
[1732051397993,0.35906255,91883.0,91882.0,0.1096892]
[1732051398866,0.25,91897.0,91887.0,0.108828]
[1732051399107,0.10882,91895.0,91890.0,0.108825]
[1732051399310,0.10906255,91894.0,91884.0,0.118832]
[1732051399525,0.10906255,91894.0,91889.0,0.108826]
[1732051399739,0.25,91892.0,91889.0,0.217651]
[1732051399971,0.25,91892.0,91882.0,0.0008542]
[1732051399972,0.65736255,91891.0,91882.0,0.0008542]
[1732051400190,0.108825,91890.0,91883.0,0.108833]
[1732051400400,0.108828,91888.0,91883.0,0.108833]
[1732051400614,0.10906255,91887.0,91883.0,0.108833]
[1732051401028,0.10906255,91887.0,91882.0,0.0008542]
[1732051401866,0.25,91886.0,91882.0,0.0008542]
[1732051402085,0.10906255,91885.0,91882.0,0.0008542]
[1732051402320,0.108834,91883.0,91882.0,0.0008542]
[1732051402542,0.21789655,91883.0,91882.0,0.0008542]
[1732051402809,0.46789655,91883.0,91882.0,0.0008542]
[1732051404087,1.05111129,91883.0,91882.0,0.0008542]
[1732051404317,1.01619655,91883.0,91882.0,0.0008542]
[1732051404541,0.208836,91881.0,91871.0,0.0004]